fUST/lending_fUST_20250320
["ID","MTS","AMOUNT","RATE_DAILY","PERIOD"]
[356444307,1742460662008,-500.0,0.0003315,21]
[356444308,1742460662020,-500.0,0.0003315,21]
[356444309,1742460662032,-500.0,0.0003315,21]
[356444310,1742460662044,-697.26,0.0003315,21]
[356444311,1742460662055,-500.0,0.0003315,21]
[356444312,1742460662065,-500.0,0.0003315,21]
[356444313,1742460662077,-500.0,0.0003315,21]
[356444314,1742460662089,-500.0,0.0003315,21]
[356444315,1742460662100,-500.0,0.0003315,21]
[356444316,1742460662111,-500.0,0.0003315,21]
[356444317,1742460662122,-500.0,0.0003315,21]
[356444318,1742460662133,-500.0,0.0003315,21]
[356444319,1742460662144,-500.0,0.0003315,21]
[356444320,1742460662158,-181.36281,0.0003315,14]
[356444321,1742460662431,-500.0,0.0003315,21]
[356444322,1742460662441,-181.36281,0.0003315,14]
[356444323,1742460662451,-181.36281,0.0003315,14]
[356444324,1742460662461,-507.57,0.0003315,21]
[356444325,1742460662470,-181.36281,0.0003315,14]
[356444326,1742460662480,-181.36281,0.0003315,14]
[356444327,1742460662492,-181.36281,0.0003315,14]
[356444328,1742460662501,-181.36281,0.0003315,14]
[356444329,1742460662512,-181.36281,0.0003315,14]
[356444330,1742460662522,-181.36281,0.0003315,14]
[356444331,1742460662531,-500.0,0.0003315,21]
[356444332,1742460662541,-181.36281,0.0003315,14]
[356444333,1742460662551,-500.0,0.0003315,21]
[356444334,1742460662561,-181.36281,0.0003315,14]
[356444335,1742460662571,-181.36281,0.0003315,14]
[356444336,1742460662580,-181.36281,0.0003315,14]
[356444337,1742460662589,-181.362818,0.0003315,14]
[356444338,1742460662599,-505.71,0.0003315,21]
[356444339,1742460662608,-500.0,0.0003315,21]
[356444340,1742460662617,-500.0,0.0003315,21]
[356444341,1742460662627,-654.35,0.0003315,21]
[356444342,1742460662638,-500.0,0.0003315,21]
[356444343,1742460662648,-500.0,0.0003315,21]
[356444344,1742460662658,-1009.74,0.0003315,21]
[356444345,1742460662668,-500.0,0.0003315,21]
[356444346,1742460662678,-221.62774881,0.0003315,21]
[356444347,1742460662687,-500.0,0.0003315,21]
[356444348,1742460662696,-500.0,0.0003315,21]
[356444349,1742460662706,-500.0,0.0003315,21]
[356444350,1742460662715,-500.0,0.0003315,21]
[356444351,1742460662724,-500.0,0.0003315,21]
[356444352,1742460662734,-500.0,0.0003315,21]
[356444353,1742460662744,-500.0,0.0003315,21]
[356444354,1742460662754,-500.0,0.0003315,21]
[356444355,1742460662764,-500.0,0.0003315,21]
[356444356,1742460662774,-500.0,0.0003315,21]
[356444357,1742460662784,-500.0,0.0003315,21]
[356444358,1742460662794,-500.0,0.0003315,21]
[356444359,1742460662804,-500.0,0.0003315,21]
[356444360,1742460662814,-500.0,0.0003315,21]
[356444361,1742460662824,-500.0,0.0003315,21]
[356444362,1742460662835,-500.0,0.0003315,21]
[356444363,1742460662845,-624.71,0.0003315,21]
[356444364,1742460662856,-500.0,0.0003315,21]
[356444365,1742460662867,-821.04,0.0003315,21]
[356444366,1742460662876,-500.0,0.0003315,21]
[356444367,1742460662886,-500.0,0.0003315,21]
[356444368,1742460662896,-500.0,0.0003315,21]
[356444369,1742460662906,-500.0,0.0003315,21]
[356444370,1742460662916,-500.0,0.0003315,21]
[356444371,1742460662926,-500.0,0.0003315,21]
[356444372,1742460662936,-527.45,0.0003315,21]
[356444373,1742460662952,-500.0,0.0003315,21]
[356444374,1742460662962,-181.329212,0.0003315,14]
[356444375,1742460662973,-667.44,0.0003315,21]
[356444376,1742460662984,-181.329212,0.0003315,14]
[356444377,1742460662994,-181.329212,0.0003315,14]
[356444378,1742460663005,-181.329212,0.0003315,14]
[356444379,1742460663015,-500.0,0.0003315,21]
[356444380,1742460663026,-181.329212,0.0003315,14]
[356444381,1742460663036,-181.329217,0.0003315,14]
[356444382,1742460663049,-1467.2,0.0003315,21]
[356444383,1742460663061,-500.0,0.0003315,21]
[356444384,1742460663075,-500.0,0.0003315,21]
[356444385,1742460663087,-500.0,0.0003315,21]
[356444386,1742460663098,-500.0,0.0003315,21]
[356444387,1742460663109,-500.0,0.0003315,21]
[356444388,1742460663122,-500.0,0.0003315,21]
[356444389,1742460663132,-500.0,0.0003315,21]
[356444390,1742460663144,-908.99,0.0003315,21]
[356444391,1742460663157,-500.0,0.0003315,10]
[356444392,1742460663177,-588.41,0.0003315,21]
[356444393,1742460663194,-500.0,0.0003315,21]
[356444394,1742460663206,-500.0,0.0003315,21]
[356444395,1742460663216,-500.0,0.0003315,21]
[356444396,1742460663227,-691.3,0.0003315,21]
[356444397,1742460663238,-1913.22,0.0003315,21]
[356444398,1742460663249,-500.0,0.0003315,21]
[356444399,1742460663260,-487.55383234,0.0003315,21]
[356444400,1742460663271,-500.0,0.0003315,21]
[356444401,1742460663282,-500.0,0.0003315,21]
[356444402,1742460663292,-500.0,0.0003315,21]
[356444403,1742460663303,-500.0,0.0003315,21]
[356444404,1742460663314,-1219.89,0.0003315,21]
[356444405,1742460663326,-500.0,0.0003315,21]
[356444406,1742460663338,-500.0,0.0003315,21]
[356444407,1742460663349,-361.15492867,0.0003315,21]
[356444408,1742460663360,-500.0,0.0003315,21]
[356444409,1742460663370,-500.0,0.0003315,21]
[356444410,1742460663380,-645.72,0.0003315,21]
[356444411,1742460663392,-500.0,0.0003315,21]
[356444412,1742460663403,-945.15,0.0003315,21]
[356444413,1742460663413,-911.4,0.0003315,21]
[356444414,1742460663424,-533.23,0.0003315,21]
[356444415,1742460663435,-1441.73,0.0003315,21]
[356444416,1742460663446,-500.0,0.0003315,21]
[356444417,1742460663456,-1756.44,0.0003315,21]
[356444418,1742460663468,-1211.65,0.0003315,21]
[356444419,1742460663479,-500.0,0.0003315,21]
[356444420,1742460663489,-546.07,0.0003315,21]
[356444421,1742460663499,-722.76,0.0003315,21]
[356444422,1742460663509,-500.0,0.0003315,21]
[356444423,1742460663519,-500.0,0.0003315,21]
[356444424,1742460663530,-500.0,0.0003315,21]
[356444425,1742460663544,-500.0,0.0003315,21]
[356444426,1742460663554,-1051.5,0.0003315,21]
[356444427,1742460663564,-500.0,0.0003315,21]
[356444428,1742460663575,-1449.49,0.0003315,21]
[356444429,1742460663588,-589.18,0.0003315,21]
[356444430,1742460663599,-510.0,0.0003315,21]
[356444431,1742460663609,-500.0,0.0003315,21]
[356444432,1742460663621,-500.0,0.0003315,21]
[356444433,1742460663631,-1117.51,0.0003315,21]
[356444434,1742460663643,-500.0,0.0003315,21]
[356444435,1742460663652,-527.1,0.0003315,21]
[356444436,1742460663663,-500.0,0.0003315,21]
[356444437,1742460663674,-558.38703774,0.0003315,21]
[356444438,1742460663685,-500.0,0.0003315,21]
[356444439,1742460663695,-500.0,0.0003315,21]
[356444440,1742460663705,-500.0,0.0003315,21]
[356444441,1742460663716,-500.0,0.0003315,21]
[356444442,1742460663726,-1106.48,0.0003315,21]
[356444443,1742460663736,-500.0,0.0003315,21]
[356444444,1742460663746,-500.0,0.0003315,21]
[356444445,1742460663756,-812.09,0.0003315,21]
[356444446,1742460663767,-500.0,0.0003315,21]
[356444447,1742460663778,-583.87855205,0.0003315,21]
[356444448,1742460663789,-2788.39,0.0003315,21]
[356444449,1742460663799,-500.0,0.0003315,21]
[356444450,1742460663809,-500.0,0.0003315,21]
[356444451,1742460663820,-500.0,0.0003315,21]
[356444452,1742460663832,-2449.61,0.0003315,21]
[356444453,1742460663842,-500.0,0.0003315,21]
[356444454,1742460663852,-500.0,0.0003315,21]
[356444455,1742460663863,-1669.11,0.0003315,21]
[356444456,1742460663873,-500.0,0.0003315,21]
[356444457,1742460663883,-500.0,0.0003315,21]
[356444458,1742460663895,-1789.45,0.0003315,21]
[356444459,1742460663905,-500.0,0.0003315,21]
[356444460,1742460663915,-2134.06,0.0003315,21]
[356444461,1742460663925,-500.0,0.0003315,21]
[356444462,1742460663936,-536.79,0.0003315,21]
[356444463,1742460663946,-500.0,0.0003315,21]
[356444464,1742460663955,-556.52,0.0003315,21]
[356444465,1742460663966,-500.0,0.0003315,21]
[356444466,1742460663976,-500.0,0.0003315,21]
[356444467,1742460663986,-882.87,0.0003315,21]
[356444468,1742460663996,-500.0,0.0003315,21]
[356444469,1742460664007,-382.33960319,0.0003315,21]
[356444470,1742460664017,-798.25,0.0003315,21]
[356444471,1742460664027,-208.52441082,0.0003315,21]
[356444472,1742460664037,-500.0,0.0003315,21]
[356444473,1742460664047,-500.0,0.0003315,21]
[356444474,1742460664056,-1656.54,0.0003315,21]
[356444475,1742460664066,-1081.0,0.0003315,21]
[356444476,1742460664076,-2013.15,0.0003315,21]
[356444477,1742460664086,-500.0,0.0003315,21]
[356444478,1742460664096,-500.0,0.0003315,21]
[356444479,1742460664107,-1291.85,0.0003315,120]
[356444480,1742460664117,-500.0,0.0003315,21]
[356444481,1742460664127,-500.0,0.0003315,21]
[356444482,1742460664137,-1504.59,0.0003315,21]
[356444483,1742460664148,-500.0,0.0003315,21]
[356444484,1742460664159,-1743.01,0.0003315,21]
[356444485,1742460664169,-500.0,0.0003315,21]
[356444486,1742460664179,-500.0,0.0003315,21]
[356444487,1742460664190,-500.0,0.0003315,21]
[356444488,1742460664200,-496.50943591,0.0003315,21]
[356444489,1742460664211,-500.0,0.0003315,21]
[356444490,1742460664222,-500.0,0.0003315,21]
[356444491,1742460664232,-500.0,0.0003315,21]
[356444492,1742460664245,-500.0,0.0003315,7]
[356444493,1742460664256,-1864.41,0.0003315,21]
[356444494,1742460664266,-500.0,0.0003315,21]
[356444495,1742460664276,-500.0,0.0003315,21]
[356444496,1742460664286,-389.60003845,0.0003315,21]
[356444497,1742460664296,-1162.65,0.0003315,21]
[356444498,1742460664307,-500.0,0.0003315,21]
[356444499,1742460664317,-500.0,0.0003315,21]
[356444500,1742460664327,-500.0,0.0003315,21]
[356444501,1742460664339,-500.0,0.0003315,120]
[356444502,1742460664351,-1985.85,0.0003315,21]
[356444503,1742460664362,-500.0,0.0003315,21]
[356444504,1742460664372,-500.0,0.0003315,21]
[356444505,1742460664383,-1317.69,0.0003315,21]
[356444506,1742460664394,-500.0,0.0003315,21]
[356444507,1742460664405,-953.74,0.0003315,21]
[356444508,1742460664415,-500.0,0.0003315,21]
[356444509,1742460664426,-500.0,0.0003315,21]
[356444510,1742460664437,-500.0,0.0003315,21]
[356444511,1742460664447,-614.1,0.0003315,21]
[356444512,1742460664456,-500.0,0.0003315,21]
[356444513,1742460664467,-500.0,0.0003315,21]
[356444514,1742460664483,-500.0,0.0003315,21]
[356444515,1742460664493,-500.0,0.0003315,21]
[356444516,1742460664503,-500.0,0.0003315,21]
[356444517,1742460664513,-500.0,0.0003315,21]
[356444518,1742460664523,-500.0,0.0003315,21]
[356444519,1742460664533,-500.0,0.0003315,21]
[356444520,1742460664543,-500.0,0.0003315,21]
[356444521,1742460664553,-500.0,0.0003315,21]
[356444522,1742460664563,-500.0,0.0003315,21]
[356444523,1742460664573,-500.0,0.0003315,21]
[356444524,1742460664583,-756.45,0.0003315,21]
[356444525,1742460664596,-2267.84,0.0003315,21]
[356444526,1742460664606,-1666.05,0.0003315,21]
[356444527,1742460664615,-155.23387376,0.0003315,21]
[356444528,1742460664625,-1277.51,0.0003315,21]
[356444529,1742460664635,-500.0,0.0003315,21]
[356444530,1742460664644,-500.0,0.0003315,21]
[356444531,1742460664654,-500.0,0.0003315,21]
[356444532,1742460664663,-500.0,0.0003315,21]
[356444533,1742460664673,-500.0,0.0003315,21]
[356444534,1742460664683,-731.43,0.0003315,21]
[356444535,1742460664693,-500.0,0.0003315,21]
[356444536,1742460664702,-500.0,0.0003315,21]
[356444537,1742460664711,-500.0,0.0003315,21]
[356444538,1742460664720,-629.83,0.0003315,21]
[356444539,1742460664730,-500.0,0.0003315,21]
[356444540,1742460664739,-838.08,0.0003315,21]
[356444541,1742460664748,-1000.0,0.0003315,21]
[356444542,1742460664757,-346.70202041,0.0003315,21]
[356444543,1742460664767,-1966.29,0.0003315,21]
[356444544,1742460664776,-500.0,0.0003315,21]
[356444545,1742460664786,-500.0,0.0003315,21]
[356444546,1742460664795,-825.32,0.0003315,21]
[356444547,1742460664805,-500.0,0.0003315,21]
[356444548,1742460664814,-2420.01,0.0003315,21]
[356444549,1742460664823,-643.62,0.0003315,120]
[356444550,1742460664833,-2137.95,0.0003315,21]
[356444551,1742460664846,-500.0,0.0003315,21]
[356444552,1742460664855,-500.0,0.0003315,2]
[356444553,1742460664865,-3874.05,0.0003315,21]
[356444554,1742460664875,-500.0,0.0003315,21]
[356444555,1742460664885,-2348.3,0.0003315,21]
[356444556,1742460664961,-500.0,0.0003315,21]
[356444557,1742460664971,-447.98310246,0.0003315,21]
[356444558,1742460664981,-500.0,0.0003315,21]
[356444559,1742460664990,-2292.14,0.0003315,21]
[356444560,1742460665000,-551.68737154,0.0003315,21]
[356444561,1742460665010,-500.0,0.0003315,21]
[356444562,1742460665019,-819.29,0.0003315,21]
[356444563,1742460665028,-500.0,0.0003315,21]
[356444564,1742460665037,-3354.83,0.0003315,2]
[356444565,1742460665047,-1917.03,0.0003315,21]
[356444566,1742460665056,-500.0,0.0003315,21]
[356444567,1742460665065,-500.0,0.0003315,21]
[356444568,1742460665075,-500.0,0.0003315,21]
[356444569,1742460665085,-500.0,0.0003315,21]
[356444570,1742460665094,-581.79,0.0003315,21]
[356444571,1742460665103,-1792.12,0.0003315,21]
[356444572,1742460665112,-506.69256788,0.0003315,21]
[356444573,1742460737586,-388.46369387,0.00018175,2]
[356444574,1742460750297,-168.26,0.00018175,2]
[356444575,1742460836730,-150.0,0.00017993,2]
[356444576,1742461018014,-150.0,0.00017993,2]
[356444577,1742461093698,-1804.9865,0.00017993,2]
[356444578,1742461145792,-231.8342,0.00017993,2]
[356444593,1742461202225,-178.72551259,0.00017813,2]
[356444594,1742461205091,-213.85502779,0.000325,25]
[356444595,1742461212431,-283.94793138,0.00016347,2]
[356444636,1742461388004,-165.03549918,0.00016184,2]
[356444637,1742461427405,-154.4112854,0.00032,14]
[356444638,1742461444527,-200.0,0.000309,5]
[356444639,1742461471017,-154.4112854,0.000309,5]
[356444640,1742461473531,-154.4112854,0.000314,6]
[356444641,1742461484031,-49.46734636,0.000309,5]
[356444642,1742461484057,-49.46734636,0.000314,6]
[356444643,1742461484083,-201.06530728,0.000319,6]
[356444644,1742461506181,-176.22338134,0.00016184,2]
[356444645,1742461515766,-181.5599978,0.00016184,2]
[356444646,1742461572507,-151.0,0.00016022,2]
[356444647,1742461645243,211.67178,0.00010959,2]
[356444648,1742461659439,-150.37076383,0.00013699,2]
[356444649,1742461699815,-61.30101617,0.00013699,2]
[356444650,1742461699839,-645.13215372,0.00016022,2]
[356444651,1742461699863,-149.32633011,0.00016347,2]
[356444653,1742461749047,-151.0,0.00013562,2]
[356444654,1742461749089,-66.83460879,0.00016347,2]
[356444655,1742461749110,-211.67178,0.00016438,2]
[356444656,1742461749130,-205.23156979,0.00017164,2]
[356444677,1742461842059,-332.66940185,0.00016761,2]
[356444680,1742461843583,-132.33765142,0.00016761,2]
[356444681,1742461843594,-261.52387372,0.00017164,2]
[356444682,1742461843604,-465.00035266,0.00017599,2]
[356444683,1742461843614,-465.08777218,0.00018022,2]
[356444684,1742461843623,-501.28279709,0.00018175,2]
[356444685,1742461843632,-211.67178,0.00019178,2]
[356444686,1742461843642,-211.67178,0.00021918,2]
[356444687,1742461843652,-211.67178,0.00024658,2]
[356444688,1742461843662,-211.67178,0.00027397,2]
[356444689,1742461843672,-204.23029732,0.000279,4]
[356444690,1742461843681,-204.23029732,0.00029043,5]
[356444691,1742461843691,-204.23029732,0.00030186,5]
[356444692,1742461843701,-160.0,0.00030243,2]
[356444693,1742461843714,-800.0,0.00030246,2]
[356444694,1742461843723,-151.0,0.00030246,2]
[356444695,1742461843733,-802.38222908,0.00030246,2]
[356444697,1742461843743,-400.0,0.00030263,2]
[356444699,1742461843753,-12458.93820146,0.00030264,2]
[356444701,1742461843763,-156.587,0.00030794,2]
[356444703,1742461843773,-204.23029732,0.00031329,6]
[356444705,1742461843783,-162.380719,0.00031342,2]
[356444707,1742461843793,-193.0,0.000314,6]
[356444708,1742461843803,-228.92262542,0.0003189,2]
[356444709,1742461843813,-178.72551259,0.00031999,2]
[356444710,1742461843823,-39845.5887146,0.00032,14]
[356444711,1742461843833,-961.71179588,0.00032228,2]
[356444712,1742461843843,-204.23029732,0.00032471,6]
[356444713,1742461843853,-4786.14497221,0.000325,25]
[356444714,1742461843863,-961.71179581,0.0003258,2]
[356444715,1742461843872,-560.0,0.00032608,2]
[356444716,1742461843882,-229.322,0.00032718,33]
[356444717,1742461843891,-500.0,0.00032855,2]
[356444718,1742461843901,-240.02460896,0.00032855,2]
[356444719,1742461843911,-387.28574733,0.00032855,2]
[356444720,1742461843921,-489.09161626,0.00032863,2]
[356444721,1742461843931,-9292.74070894,0.00032866,2]
[356444722,1742461843940,-417.94044697,0.00032866,3]
[356444723,1742461843950,-16720.61,0.00032866,3]
[356444724,1742461843959,-235.34932101,0.00032873,5]
[356444725,1742461843969,-500.0,0.00032873,5]
[356444726,1742461843979,-500.0,0.00032873,5]
[356444727,1742461843988,-500.0,0.00032873,5]
[356444728,1742461843998,-500.0,0.00032873,5]
[356444729,1742461844008,-500.0,0.00032873,5]
[356444730,1742461844018,-649.61548742,0.00032873,5]
[356444731,1742461844027,-500.0,0.00032873,5]
[356444732,1742461844037,-500.0,0.00032873,5]
[356444733,1742461844047,-500.0,0.00032873,5]
[356444734,1742461844057,-500.0,0.00032873,5]
[356444735,1742461844066,-500.0,0.00032873,5]
[356444736,1742461844076,-500.0,0.00032873,5]
[356444737,1742461844086,-500.0,0.00032873,5]
[356444738,1742461844096,-501.75623843,0.00032873,5]
[356444739,1742461844105,-500.0,0.00032873,5]
[356444740,1742461844114,-500.0,0.00032873,5]
[356444741,1742461844123,-500.0,0.00032873,5]
[356444742,1742461844133,-500.0,0.00032873,5]
[356444743,1742461844143,-500.0,0.00032873,5]
[356444744,1742461844152,-502.14289944,0.00032873,5]
[356444745,1742461844162,-500.0,0.00032873,5]
[356444746,1742461844171,-500.0,0.00032873,5]
[356444747,1742461844180,-502.73697796,0.00032873,5]
[356444748,1742461844189,-160.0,0.00032875,10]
[356444749,1742461844199,-253.35091917,0.00032875,10]
[356444750,1742461844208,-500.0,0.00032876,21]
[356444751,1742461844220,-500.0,0.00032876,21]
[356444752,1742461844229,-500.0,0.00032876,21]
[356444753,1742461844239,-500.0,0.00032876,21]
[356444754,1742461844250,-500.0,0.00032876,21]
[356444755,1742461844259,-500.0,0.00032876,21]
[356444756,1742461844268,-500.0,0.00032876,21]
[356444757,1742461844278,-500.0,0.00032876,21]
[356444758,1742461844287,-500.0,0.00032876,21]
[356444759,1742461844296,-500.0,0.00032876,21]
[356444760,1742461844306,-500.0,0.00032876,21]
[356444761,1742461844316,-500.0,0.00032876,21]
[356444762,1742461844326,-500.0,0.00032876,21]
[356444763,1742461844336,-500.0,0.00032876,21]
[356444764,1742461844346,-500.0,0.00032876,21]
[356444765,1742461844356,-500.0,0.00032876,21]
[356444766,1742461844365,-500.0,0.00032876,21]
[356444767,1742461844375,-500.0,0.00032876,21]
[356444768,1742461844614,-500.0,0.00032876,21]
[356444769,1742461844624,-500.0,0.00032876,21]
[356444770,1742461844633,-500.0,0.00032876,21]
[356444771,1742461844643,-500.0,0.00032876,21]
[356444772,1742461844653,-500.0,0.00032876,21]
[356444773,1742461844662,-309.83914841,0.00032876,21]
[356444774,1742461844673,-500.0,0.00032876,21]
[356444775,1742461844682,-549.89544477,0.00032876,21]
[356444776,1742461844691,-610.3596089,0.00032876,21]
[356444777,1742461844702,-500.0,0.00032876,21]
[356444778,1742461844715,-214.2919505,0.00032876,21]
[356444779,1742461844724,-500.0,0.00032876,21]
[356444780,1742461844734,-500.0,0.00032876,21]
[356444781,1742461844744,-500.0,0.00032876,21]
[356444782,1742461844754,-485.21793107,0.00032876,21]
[356444783,1742461844764,-500.0,0.00032876,21]
[356444784,1742461844774,-500.0,0.00032876,21]
[356444785,1742461844785,-181.21318707,0.00032876,21]
[356444786,1742461844796,-500.0,0.00032876,21]
[356444787,1742461844806,-500.0,0.00032876,21]
[356444788,1742461844816,-500.0,0.00032876,21]
[356444789,1742461844826,-500.0,0.00032876,21]
[356444790,1742461844835,-500.0,0.00032876,21]
[356444791,1742461844845,-501.75573965,0.00032876,21]
[356444792,1742461844855,-695.15,0.00032876,21]
[356444793,1742461844864,-500.0,0.00032876,21]
[356444794,1742461844874,-500.0,0.00032876,21]
[356444795,1742461844883,-500.0,0.00032876,21]
[356444796,1742461844893,-500.0,0.00032876,21]
[356444797,1742461844903,-500.0,0.00032876,21]
[356444798,1742461844912,-500.0,0.00032876,21]
[356444799,1742461844923,-151.0,0.00032876,7]
[356444800,1742461844932,-1428.27,0.00032876,21]
[356444801,1742461844942,-500.0,0.00032876,21]
[356444802,1742461844951,-151.0,0.00032876,7]
[356444803,1742461844961,-500.0,0.00032876,21]
[356444804,1742461844971,-500.0,0.00032876,21]
[356444805,1742461844981,-500.0,0.00032876,21]
[356444806,1742461844991,-500.0,0.00032876,21]
[356444807,1742461845001,-500.0,0.00032876,21]
[356444808,1742461845011,-500.0,0.00032876,21]
[356444809,1742461845020,-500.0,0.00032876,21]
[356444810,1742461845029,-500.0,0.00032876,21]
[356444811,1742461845039,-500.0,0.00032876,21]
[356444812,1742461845049,-500.0,0.00032876,21]
[356444813,1742461845059,-500.0,0.00032876,21]
[356444814,1742461845069,-195.0,0.00032876,30]
[356444815,1742461845078,-500.0,0.00032876,21]
[356444816,1742461845088,-500.0,0.00032876,21]
[356444817,1742461845098,-634.53,0.00032876,21]
[356444818,1742461845108,-500.0,0.00032876,21]
[356444819,1742461845118,-500.0,0.00032876,21]
[356444820,1742461845127,-1404.91,0.00032876,21]
[356444821,1742461845137,-500.0,0.00032876,21]
[356444822,1742461845147,-566.83,0.00032876,21]
[356444823,1742461845156,-195.0,0.00032876,30]
[356444824,1742461845166,-500.0,0.00032876,21]
[356444825,1742461845176,-1610.07,0.00032876,21]
[356444826,1742461845186,-2103.61,0.00032876,21]
[356444827,1742461845196,-500.0,0.00032876,21]
[356444828,1742461845205,-500.0,0.00032876,21]
[356444829,1742461845215,-500.0,0.00032876,21]
[356444830,1742461845225,-1432.87,0.00032876,21]
[356444831,1742461845235,-1129.64,0.00032876,21]
[356444832,1742461845245,-500.0,0.00032876,21]
[356444833,1742461845255,-595.61769682,0.00032876,21]
[356444834,1742461845265,-1387.5,0.00032876,21]
[356444835,1742461845276,-500.0,0.00032876,21]
[356444836,1742461845286,-500.0,0.00032876,21]
[356444837,1742461845296,-500.0,0.00032876,21]
[356444838,1742461845307,-500.0,0.00032876,21]
[356444839,1742461845319,-500.0,0.00032876,21]
[356444840,1742461845329,-500.0,0.00032876,21]
[356444841,1742461845340,-500.0,0.00032876,21]
[356444842,1742461845350,-500.0,0.00032876,21]
[356444843,1742461845361,-910.96,0.00032876,21]
[356444844,1742461845371,-500.0,0.00032876,21]
[356444845,1742461845381,-500.0,0.00032876,21]
[356444846,1742461845391,-500.0,0.00032876,21]
[356444847,1742461845402,-500.0,0.00032876,21]
[356444848,1742461845412,-500.0,0.00032876,21]
[356444849,1742461845422,-500.0,0.00032876,21]
[356444850,1742461845431,-500.0,0.00032876,21]
[356444851,1742461845440,-500.0,0.00032876,21]
[356444852,1742461845449,-500.0,0.00032876,21]
[356444853,1742461845459,-619.69,0.00032876,21]
[356444854,1742461845468,-500.0,0.00032876,21]
[356444855,1742461845477,-500.0,0.00032876,21]
[356444856,1742461845487,-774.65,0.00032876,21]
[356444857,1742461845496,-500.0,0.00032876,21]
[356444858,1742461845506,-500.0,0.00032876,21]
[356444859,1742461845515,-500.0,0.00032876,21]
[356444860,1742461845525,-500.0,0.00032876,21]
[356444861,1742461845534,-500.0,0.00032876,120]
[356444862,1742461845545,-500.0,0.00032876,21]
[356444863,1742461845555,-500.0,0.00032876,21]
[356444864,1742461845564,-500.0,0.00032876,21]
[356444865,1742461845574,-500.0,0.00032876,21]
[356444866,1742461845584,-500.0,0.00032876,21]
[356444867,1742461845593,-500.0,0.00032876,21]
[356444868,1742461845603,-500.0,0.00032876,21]
[356444869,1742461845614,-646.82,0.00032876,21]
[356444870,1742461845624,-500.0,0.00032876,21]
[356444871,1742461845635,-552.67979106,0.00032876,21]
[356444872,1742461845645,-500.0,0.00032876,21]
[356444873,1742461845655,-668.27,0.00032876,21]
[356444874,1742461845665,-2316.69,0.00032876,21]
[356444875,1742461845675,-500.0,0.00032876,21]
[356444876,1742461845684,-500.0,0.00032876,21]
[356444877,1742461845694,-990.92,0.00032876,21]
[356444878,1742461845704,-500.0,0.00032876,21]
[356444879,1742461845716,-1090.13,0.00032876,21]
[356444880,1742461845726,-500.0,0.00032876,21]
[356444881,1742461845735,-500.0,0.00032876,21]
[356444882,1742461845745,-500.0,0.00032876,21]
[356444883,1742461845755,-500.0,0.00032876,21]
[356444884,1742461845764,-1362.39,0.00032876,21]
[356444885,1742461845773,-159.33471682,0.00032876,21]
[356444886,1742461845783,-500.0,0.00032876,21]
[356444887,1742461845795,-1927.43,0.00032876,21]
[356444888,1742461845805,-500.0,0.00032876,21]
[356444889,1742461845815,-500.0,0.00032876,7]